fUSD/lending_fUSD_20250708
["ID","MTS","AMOUNT","RATE_DAILY","PERIOD"]
[370274379,1751932860283,197.26,0.0002721,120]
[370274386,1751933362106,1246.1,0.00030137,120]
[370274396,1751933432249,-250.0,0.00015,2]
[370274397,1751933432258,-300.0,0.00017,2]
[370274398,1751933432267,-700.0,0.00017999,2]
[370274399,1751933432277,-1200.0,0.00017999,2]
[370274400,1751933432286,-10000.0,0.00018,2]
[370274401,1751933432295,-1239.40483294,0.000189,2]
[370274402,1751933432305,-10000.0,0.00019,2]
[370274403,1751933432314,-625.20950986,0.000195,2]
[370274404,1751933432323,-500.0,0.000195,2]
[370274405,1751933432333,-499.22912814,0.000195,2]
[370274406,1751933432342,-501.08051163,0.000195,2]
[370274407,1751933432351,-1680.0,0.00019735,2]
[370274408,1751933432361,-1239.40483283,0.00019831,2]
[370274409,1751933432370,-10000.0,0.0002,2]
[370274410,1751933432379,-1000.0,0.00020048,2]
[370274411,1751933432388,-1000.0,0.00020596,2]
[370274412,1751933432397,-1239.40483283,0.00020762,3]
[370274413,1751933432407,-10000.0,0.00021,2]
[370274414,1751933432416,-250.0,0.00021096,2]
[370274415,1751933432425,-454.63347205,0.00021639,2]
[370274416,1751933432437,-12.36652795,0.00021639,2]
[370274417,1751933432447,-1239.40483283,0.00021693,5]
[370274418,1751933432456,-17.90641698,0.00022624,7]
[370274419,1751933432488,-1221.49841585,0.00022624,7]
[370274420,1751933432498,-152.31,0.00023145,2]
[370274421,1751933432507,-1239.40483283,0.00023555,9]
[370274422,1751933432517,-1239.40483283,0.00024486,11]
[370274423,1751933432526,-1239.40483283,0.00025417,13]
[370274424,1751933432536,-169.93,0.00025738,2]
[370274426,1751933432545,-1239.40483283,0.00026348,14]
[370274428,1751933432554,-250.0,0.00026505,2]
[370274430,1751933432563,-162.78,0.00026607,2]
[370274432,1751933432573,-5000.0,0.00026623,2]
[370274434,1751933432582,-200.0,0.00026804,2]
[370274436,1751933432592,-23900.0,0.00027023,2]
[370274438,1751933432601,-1602.78,0.00027167,2]
[370274440,1751933432610,-166.81,0.00027175,2]
[370274442,1751933432620,-1239.40483283,0.00027279,16]
[370274444,1751933432629,-529.54312781,0.000274,2]
[370274446,1751933432639,-666.0,0.0002785,2]
[370274448,1751933432648,-1239.40483283,0.0002821,18]
[370274450,1751933432657,-151.52,0.00028273,2]
[370274452,1751933432666,-4208.78,0.00028438,2]
[370274454,1751933432675,-549.42,0.00028451,2]
[370274456,1751933432684,-4255.39,0.00028499,2]
[370274458,1751933432693,-164.42,0.00028503,2]
[370274460,1751933432702,-603.98,0.0002902,2]
[370274462,1751933432712,-603.98,0.00029036,2]
[370274464,1751933432721,-603.98,0.00029051,2]
[370274466,1751933432731,-603.98,0.00029066,2]
[370274468,1751933432740,-603.98,0.00029082,2]
[370274470,1751933432749,-603.98,0.00029097,2]
[370274472,1751933432760,-603.98,0.00029112,2]
[370274474,1751933432769,-603.98,0.00029127,2]
[370274476,1751933432778,-1239.40483283,0.00029141,20]
[370274478,1751933432787,-603.98,0.00029143,2]
[370274480,1751933432796,-603.98,0.00029158,2]
[370274482,1751933432805,-603.98,0.00029173,2]
[370274483,1751933432814,-603.98,0.00029188,2]
[370274485,1751933432823,-603.98,0.00029204,2]
[370274487,1751933432833,-603.98,0.00029219,2]
[370274489,1751933432842,-603.98,0.00029234,2]
[370274491,1751933432852,-603.98,0.00029249,2]
[370274493,1751933432864,-603.98,0.00029265,2]
[370274495,1751933432874,-603.98,0.0002928,2]
[370274497,1751933432883,-603.98,0.00029295,2]
[370274499,1751933432893,-167.27,0.00029297,2]
[370274501,1751933432903,-603.98,0.0002931,2]
[370274503,1751933432913,-9863.22101888,0.000296,2]
[370274507,1751933432933,-801.73694016,0.000296,2]
[370274509,1751933432943,-441.2444116,0.000296,2]
[370274511,1751933432954,-253.43549681,0.000296,2]
[370274513,1751933432966,-352.53749558,0.000296,2]
[370274516,1751933432984,-6923.05408002,0.000296,2]
[370274518,1751933432995,-8043.56920302,0.000296,2]
[370274625,1751933438113,-18280.20135393,0.000296,2]
[370274626,1751933438123,-150.0,0.00029771,2]
[370274627,1751933438132,-2617.70880996,0.00030036,2]
[370274628,1751933438141,-570.03998848,0.00030072,22]
[370274630,1751933438505,-669.36484435,0.00030072,22]
[370274631,1751933438514,-633.13793898,0.000301,2]
[370274632,1751933438526,-289.07751263,0.000301,2]
[370274633,1751933438539,-77.78454839,0.000301,2]
[370274634,1751933438549,-1512.38952242,0.00030111,60]
[370274635,1751933438559,-375.13020342,0.00030136,7]
[370274636,1751933438571,-84.86979658,0.00030136,7]
[370274637,1751933438580,-460.0,0.00030136,7]
[370274639,1751933438590,-352.73754047,0.00030136,7]
[370274641,1751933438599,-459.67680401,0.00030136,7]
[370274643,1751933438608,-408.51234092,0.00030136,7]
[370274806,1751933440386,-51.48765908,0.00030136,7]
[370274808,1751933440396,-460.0,0.00030136,7]
[370274810,1751933440406,-447.11,0.00030136,7]
[370274812,1751933440416,-460.0,0.00030136,7]
[370274813,1751933440425,-260.65,0.00030136,7]
[370274814,1751933440434,-460.0,0.00030136,7]
[370274815,1751933440444,-460.0,0.00030136,7]
[370274816,1751933440453,-34.80809912,0.00030136,7]
[370274818,1751933440615,-121.15190088,0.00030136,7]
[370274819,1751933440625,-172.09,0.00030136,7]
[370274821,1751933440635,-460.0,0.00030136,7]
[370274822,1751933440644,-460.0,0.00030136,7]
[370274824,1751933440653,-460.0,0.00030136,7]
[370274826,1751933440663,-199.18,0.00030136,7]
[370274828,1751933440672,-190.32,0.00030136,7]
[370274830,1751933440682,-460.0,0.00030136,7]
[370274832,1751933440691,-460.0,0.00030136,7]
[370274834,1751933440700,-460.0,0.00030136,7]
[370274836,1751933440710,-460.0,0.00030136,7]
[370274838,1751933440719,-460.0,0.00030136,7]
[370274840,1751933440728,-460.0,0.00030136,7]
[370274842,1751933440738,-460.0,0.00030136,7]
[370274844,1751933440747,-513.03615365,0.00030136,7]
[370274846,1751933440756,-460.0,0.00030136,7]
[370274848,1751933440765,-460.0,0.00030136,7]
[370274850,1751933440775,-300.0,0.00030136,7]
[370274852,1751933440785,-460.0,0.00030136,7]
[370274854,1751933440794,-460.0,0.00030136,7]
[370274856,1751933440803,-460.0,0.00030136,7]
[370274858,1751933440813,-460.0,0.00030136,7]
[370274860,1751933440822,-460.0,0.00030136,7]
[370274862,1751933440832,-460.0,0.00030136,7]
[370274864,1751933440841,-460.0,0.00030136,7]
[370274865,1751933440850,-497.81157093,0.00030136,7]
[370274867,1751933440862,-460.0,0.00030136,7]
[370274869,1751933440871,-460.0,0.00030136,7]
[370274871,1751933440881,-165.78,0.00030136,7]
[370274873,1751933440890,-460.0,0.00030136,7]
[370274875,1751933440899,-327.17,0.00030136,7]
[370274877,1751933440909,-523.35,0.00030136,7]
[370274879,1751933440918,-460.0,0.00030136,7]
[370274881,1751933440928,-460.0,0.00030136,7]
[370274883,1751933440937,-460.0,0.00030136,7]
[370274885,1751933440947,-354.79489981,0.00030136,7]
[370274887,1751933440956,-432.72,0.00030136,7]
[370274889,1751933440965,-295.30886549,0.00030136,7]
[370274891,1751933440975,-460.0,0.00030136,7]
[370274893,1751933440984,-460.0,0.00030136,7]
[370274895,1751933440993,-460.0,0.00030136,7]
[370274897,1751933441003,-460.0,0.00030136,7]
[370274899,1751933441012,-460.0,0.00030136,7]
[370274901,1751933441021,-460.0,0.00030136,7]
[370274903,1751933441030,-460.0,0.00030136,7]
[370274905,1751933441041,-460.0,0.00030136,7]
[370274907,1751933441050,-460.0,0.00030136,7]
[370274909,1751933441060,-460.0,0.00030136,7]
[370274911,1751933441069,-460.0,0.00030136,7]
[370274913,1751933441082,-460.0,0.00030136,7]
[370274915,1751933441091,-460.0,0.00030136,7]
[370274917,1751933441100,-460.0,0.00030136,7]
[370274919,1751933441109,-460.0,0.00030136,7]
[370274921,1751933441118,-460.0,0.00030136,7]
[370274923,1751933441127,-460.0,0.00030136,7]
[370274925,1751933441137,-460.0,0.00030136,7]
[370274927,1751933441146,-460.0,0.00030136,7]
[370274929,1751933441155,-460.0,0.00030136,7]
[370274931,1751933441164,-460.0,0.00030136,7]
[370274933,1751933441173,-460.0,0.00030136,7]
[370274935,1751933441182,-460.0,0.00030136,7]
[370274937,1751933441191,-460.0,0.00030136,7]
[370274939,1751933441201,-460.0,0.00030136,7]
[370274941,1751933441210,-460.0,0.00030136,7]
[370274943,1751933441219,-460.0,0.00030136,7]
[370274945,1751933441228,-460.0,0.00030136,7]
[370274947,1751933441237,-460.0,0.00030136,7]
[370274949,1751933441246,-460.0,0.00030136,7]
[370274951,1751933441256,-460.0,0.00030136,7]
[370274952,1751933441265,-460.0,0.00030136,7]
[370274954,1751933441274,-460.0,0.00030136,7]
[370274956,1751933441283,-460.0,0.00030136,7]
[370274959,1751933441293,-460.0,0.00030136,7]
[370274961,1751933441302,-460.0,0.00030136,7]
[370274963,1751933441311,-460.0,0.00030136,7]
[370274965,1751933441320,-460.0,0.00030136,7]
[370274967,1751933441330,-460.0,0.00030136,7]
[370274969,1751933441339,-460.0,0.00030136,7]
[370274971,1751933441348,-460.0,0.00030136,7]
[370274973,1751933441356,-460.0,0.00030136,7]
[370274974,1751933441365,-465.35,0.00030136,7]
[370274976,1751933441374,-460.0,0.00030136,7]
[370274978,1751933441383,-414.73,0.00030136,7]
[370274980,1751933441392,-460.0,0.00030136,7]
[370274982,1751933441401,-607.12,0.00030136,7]
[370274983,1751933441410,-460.0,0.00030136,7]
[370274984,1751933441421,-460.0,0.00030136,7]
[370274985,1751933441431,-524.43,0.00030136,7]
[370274986,1751933441440,-460.0,0.00030136,7]
[370274987,1751933441449,-460.0,0.00030136,7]
[370274988,1751933441458,-460.0,0.00030136,7]
[370274989,1751933441467,-460.0,0.00030136,7]
[370274990,1751933441476,-460.0,0.00030136,7]
[370274991,1751933441485,-460.0,0.00030136,7]
[370274992,1751933441495,-460.0,0.00030136,7]
[370274993,1751933441504,-460.0,0.00030136,7]
[370274994,1751933441513,-460.0,0.00030136,7]
[370274995,1751933441523,-460.0,0.00030136,7]
[370274997,1751933441534,-460.0,0.00030136,7]
[370274998,1751933441544,-460.0,0.00030136,7]
[370275000,1751933441553,-460.0,0.00030136,7]
[370275002,1751933441563,-836.92587831,0.00030136,7]
[370275004,1751933441572,-210.31172994,0.00030136,7]
[370275006,1751933441581,-407.15,0.00030164,30]
[370275008,1751933441590,-159.94802385,0.0003031,2]
[370275011,1751933441601,-1000.0,0.0003031,2]
[370275013,1751933441610,-836.92587831,0.00030316,2]
[370275014,1751933441619,-210.31172994,0.00030316,2]
[370275016,1751933441628,-207.24,0.0003039,2]
[370275018,1751933441638,-5417.56551909,0.00030399,3]
[370275020,1751933441647,-5509.0,0.000304,3]
[370275022,1751933441656,-460.0,0.000304,7]
[370275024,1751933441665,-16252.6965573,0.000304,3]
[370275026,1751933441675,-210.31172994,0.000304,3]
[370275028,1751933441684,-460.0,0.00030407,7]
[370275030,1751933441694,-569.2,0.00030407,7]
[370275032,1751933441704,-460.0,0.00030407,7]
[370275034,1751933441713,-460.0,0.00030407,7]
[370275036,1751933441722,-460.0,0.00030407,7]
[370275038,1751933441732,-460.0,0.00030407,7]
[370275040,1751933441741,-460.0,0.00030407,7]
[370275042,1751933441751,-460.0,0.00030407,7]
[370275044,1751933441760,-460.0,0.00030407,7]
[370275046,1751933441769,-460.0,0.00030407,7]
[370275048,1751933441778,-460.0,0.00030407,7]
[370275049,1751933441789,-460.0,0.00030407,7]
[370275051,1751933441798,-460.0,0.00030407,7]
[370275054,1751933441808,-460.0,0.00030407,7]
[370275056,1751933441817,-460.0,0.00030407,7]
[370275057,1751933441827,-460.0,0.00030407,7]
[370275059,1751933441836,-460.0,0.00030407,7]
[370275062,1751933441846,-593.77,0.00030407,7]
[370275063,1751933441855,-460.0,0.00030407,7]
[370275065,1751933441868,-177.021164,0.00030407,7]
[370275067,1751933441877,-460.0,0.00030407,7]
[370275069,1751933441886,-460.0,0.00030407,7]
[370275071,1751933441896,-460.0,0.00030407,7]
[370275073,1751933441906,-173.29359,0.00030407,7]
[370275075,1751933441916,-460.0,0.00030407,7]
[370275077,1751933441926,-460.0,0.00030407,7]
[370275079,1751933441936,-460.0,0.00030408,7]
[370275081,1751933441945,-414.42143726,0.00030408,7]
[370275083,1751933441955,-460.0,0.00030408,7]
[370275086,1751933441964,-460.0,0.00030408,7]
[370275088,1751933441974,-460.0,0.00030408,7]
[370275089,1751933441983,-460.0,0.00030408,7]
[370275091,1751933441992,-460.0,0.00030408,7]
[370275093,1751933442002,-460.0,0.00030408,7]
[370275095,1751933442011,-460.0,0.00030408,7]
[370275096,1751933442020,-460.0,0.00030408,7]
[370275097,1751933442029,-460.0,0.00030408,7]
[370275098,1751933442039,-460.0,0.00030408,7]
[370275099,1751933442048,-1690.81,0.00030408,7]
[370275100,1751933442057,-460.0,0.00030408,7]
[370275101,1751933442066,-460.0,0.00030408,7]
[370275102,1751933442075,-460.0,0.00030408,7]
[370275103,1751933442084,-460.0,0.00030408,7]
[370275104,1751933442094,-460.0,0.00030408,7]
[370275105,1751933442103,-460.0,0.00030408,7]
[370275106,1751933442112,-460.0,0.00030408,7]
[370275107,1751933442121,-460.0,0.00030408,7]
[370275108,1751933442132,-549.85,0.00030408,7]
[370275109,1751933442141,-460.0,0.00030408,7]
[370275110,1751933442151,-460.0,0.00030408,7]
[370275111,1751933442160,-499.53977848,0.00030408,7]
[370275112,1751933442169,-500.0,0.00030408,7]
[370275113,1751933442178,-460.0,0.00030408,7]
[370275114,1751933442188,-460.0,0.00030408,7]
[370275115,1751933442197,-460.0,0.00030408,7]
[370275116,1751933442206,-460.0,0.00030408,7]
[370275117,1751933442216,-460.0,0.00030408,7]
[370275118,1751933442225,-460.0,0.00030408,7]
[370275119,1751933442234,-460.0,0.00030408,7]
[370275120,1751933442243,-460.0,0.00030408,7]
[370275121,1751933442252,-752.25,0.00030408,7]
[370275122,1751933442262,-433.56,0.00030408,7]
[370275123,1751933442272,-460.0,0.00030408,7]
[370275124,1751933442281,-460.0,0.00030408,7]
[370275125,1751933442292,-460.0,0.00030408,7]
[370275126,1751933442301,-460.0,0.00030408,7]
[370275127,1751933442310,-517.66,0.00030408,7]
[370275128,1751933442319,-460.0,0.00030408,7]
[370275129,1751933442330,-460.0,0.00030408,7]
[370275130,1751933442339,-460.0,0.00030408,7]
[370275131,1751933442350,-460.0,0.00030408,7]
[370275132,1751933442360,-460.0,0.00030408,7]
[370275133,1751933442369,-337.03,0.00030408,2]
[370275134,1751933442379,-460.0,0.00030408,7]
[370275135,1751933442389,-460.0,0.00030408,7]
[370275136,1751933442398,-460.0,0.00030408,7]
[370275137,1751933442408,-460.0,0.00030408,7]
[370275138,1751933442418,-541.8,0.00030408,7]
[370275139,1751933442427,-460.0,0.00030408,7]
[370275140,1751933442438,-460.0,0.00030408,7]
[370275141,1751933442448,-460.0,0.00030408,7]
[370275142,1751933442456,-460.0,0.00030408,7]
[370275143,1751933442466,-174.75395355,0.00030408,2]
[370275144,1751933442475,-593.63434158,0.00030408,2]
[370275145,1751933442484,-460.0,0.00030409,7]
[370275146,1751933442494,-460.0,0.00030409,7]
[370275147,1751933442503,-460.0,0.00030409,7]
[370275148,1751933442512,-460.0,0.00030409,7]
[370275149,1751933442521,-460.0,0.00030409,7]
[370275150,1751933442531,-460.0,0.00030409,7]
[370275151,1751933442540,-456.28268594,0.00030409,7]
[370275152,1751933442549,-460.0,0.00030409,7]
[370275153,1751933442558,-460.0,0.00030409,7]
[370275154,1751933442567,-460.0,0.00030409,7]
[370275155,1751933442577,-460.0,0.00030409,7]
[370275156,1751933442586,-460.0,0.00030409,7]
[370275157,1751933442595,-460.0,0.00030409,7]
[370275158,1751933442604,-460.0,0.00030409,7]
[370275159,1751933442613,-460.0,0.00030409,7]
[370275160,1751933442623,-460.0,0.00030409,7]
[370275161,1751933442632,-581.04,0.00030409,7]
[370275162,1751933442642,-460.0,0.00030409,7]
[370275163,1751933442651,-388.01560577,0.00030409,7]
[370275164,1751933442661,-460.0,0.00030409,7]
[370275165,1751933442670,-460.0,0.00030409,7]
[370275166,1751933442679,-460.0,0.00030409,7]
[370275167,1751933442688,-185.6680278,0.00030409,7]
[370275168,1751933442698,-460.0,0.00030409,7]
[370275169,1751933442707,-460.0,0.00030409,7]
[370275170,1751933442717,-460.0,0.00030409,7]
[370275171,1751933442726,-460.0,0.00030409,7]
[370275172,1751933442736,-460.0,0.00030409,7]
[370275173,1751933442745,-460.0,0.00030409,7]
[370275174,1751933442755,-490.0,0.00030409,7]
[370275175,1751933442764,-460.0,0.00030409,7]
[370275176,1751933442773,-460.0,0.00030409,7]
[370275177,1751933442782,-460.0,0.00030409,7]
[370275178,1751933442793,-556.72,0.00030409,7]
[370275179,1751933442802,-460.0,0.00030409,7]
[370275180,1751933442811,-460.0,0.00030409,7]
[370275181,1751933442821,-460.0,0.00030409,7]
[370275182,1751933442830,-460.0,0.00030409,7]
[370275183,1751933442840,-460.0,0.00030409,7]
[370275184,1751933442849,-460.0,0.00030409,7]
[370275185,1751933442860,-460.0,0.00030409,7]
[370275186,1751933442871,-460.0,0.00030409,7]
[370275187,1751933442880,-539.4,0.00030409,7]
[370275188,1751933442890,-460.0,0.00030409,7]
[370275189,1751933442899,-460.0,0.00030409,7]
[370275190,1751933442909,-460.0,0.00030409,7]
[370275191,1751933442919,-460.0,0.00030409,7]
[370275192,1751933442930,-460.0,0.00030409,7]
[370275193,1751933442940,-460.0,0.00030409,7]
[370275194,1751933442950,-460.0,0.00030409,7]
[370275195,1751933442960,-460.0,0.00030409,7]
[370275196,1751933442969,-460.0,0.00030409,7]
[370275197,1751933442979,-464.0,0.00030409,7]
[370275198,1751933442988,-460.0,0.00030409,7]
[370275199,1751933442998,-460.0,0.00030409,7]
[370275200,1751933443007,-460.0,0.00030409,7]
[370275201,1751933443016,-460.0,0.00030409,7]
[370275202,1751933443026,-552.83,0.00030409,7]
[370275203,1751933443037,-460.0,0.00030409,7]
[370275204,1751933443046,-460.0,0.00030409,7]
[370275205,1751933443055,-460.0,0.00030409,7]
[370275207,1751933443065,-460.0,0.00030409,7]
[370275210,1751933443074,-460.0,0.00030409,7]
[370275212,1751933443084,-460.0,0.00030409,7]
[370275214,1751933443097,-460.0,0.00030409,7]
[370275216,1751933443106,-460.0,0.00030409,7]
[370275218,1751933443116,-460.0,0.00030409,7]
[370275220,1751933443125,-460.0,0.00030409,7]
[370275221,1751933443134,-460.0,0.00030409,7]
[370275224,1751933443144,-460.0,0.00030409,7]
[370275226,1751933443153,-460.0,0.00030409,7]
[370275228,1751933443162,-460.0,0.00030409,7]
[370275230,1751933443171,-460.0,0.00030409,7]
[370275232,1751933443181,-460.0,0.00030409,7]
[370275234,1751933443190,-460.0,0.00030409,7]
[370275235,1751933443204,-460.0,0.00030409,7]
[370275237,1751933443213,-460.0,0.00030409,7]
[370275239,1751933443223,-460.0,0.00030409,7]
[370275241,1751933443232,-460.0,0.00030409,7]
[370275243,1751933443242,-349.01079874,0.00030409,7]
[370275245,1751933443251,-460.0,0.00030409,7]
[370275247,1751933443261,-460.0,0.00030409,7]
[370275249,1751933443269,-460.0,0.00030409,7]
[370275251,1751933443279,-460.0,0.00030409,7]
[370275252,1751933443288,-460.0,0.00030409,7]
[370275253,1751933443298,-460.0,0.00030409,7]
[370275254,1751933443307,-460.0,0.00030409,7]
[370275255,1751933443316,-460.0,0.00030409,7]
[370275256,1751933443326,-460.0,0.00030409,7]
[370275257,1751933443336,-460.0,0.00030409,7]
[370275258,1751933443345,-460.0,0.00030409,7]
[370275259,1751933443355,-460.0,0.00030409,7]
[370275260,1751933443364,-402.12,0.00030409,7]
[370275261,1751933443373,-460.0,0.00030409,7]
[370275262,1751933443383,-460.0,0.00030409,7]
[370275263,1751933443395,-460.0,0.00030409,7]
[370275264,1751933443405,-460.0,0.00030409,7]
[370275265,1751933443415,-460.0,0.00030409,7]
[370275266,1751933443424,-460.0,0.00030409,7]
[370275267,1751933443434,-460.0,0.00030409,7]
[370275268,1751933443443,-460.0,0.00030409,7]
[370275269,1751933443452,-460.0,0.00030409,7]
[370275270,1751933443461,-460.0,0.00030409,7]
[370275271,1751933443471,-460.0,0.00030409,7]
[370275272,1751933443480,-460.0,0.00030409,7]
[370275273,1751933443489,-460.0,0.00030409,7]
[370275274,1751933443499,-1136.04,0.00030409,7]
[370275275,1751933443508,-460.0,0.00030409,7]
[370275276,1751933443517,-460.0,0.00030409,7]
[370275277,1751933443527,-460.0,0.00030409,7]
[370275278,1751933443536,-460.0,0.00030409,7]
[370275279,1751933443546,-460.0,0.00030409,7]
[370275280,1751933443556,-460.0,0.00030409,7]
[370275281,1751933443565,-460.0,0.00030409,7]
[370275282,1751933443575,-460.0,0.00030409,7]
[370275283,1751933443585,-209.94,0.00030409,7]
[370275284,1751933443594,-460.0,0.00030409,7]
[370275285,1751933443603,-460.0,0.00030409,7]
[370275286,1751933443613,-460.0,0.00030409,7]
[370275287,1751933443622,-460.0,0.00030409,7]
[370275288,1751933443631,-460.0,0.00030409,7]
[370275289,1751933443641,-460.0,0.00030409,7]
[370275290,1751933443649,-229.16,0.00030409,7]
[370275291,1751933443659,-460.0,0.00030409,7]
[370275292,1751933443668,-460.0,0.00030409,7]
[370275293,1751933443678,-460.0,0.00030409,7]
[370275294,1751933443687,-460.0,0.00030409,7]
[370275295,1751933443696,-460.0,0.00030409,7]
[370275296,1751933443706,-460.0,0.00030409,7]
[370275297,1751933443714,-460.0,0.00030409,7]
[370275299,1751933443724,-396.47647548,0.00030409,7]
[370275301,1751933443733,-460.0,0.00030409,7]
[370275303,1751933443742,-460.0,0.00030409,7]
[370275305,1751933443752,-460.0,0.00030409,7]
[370275306,1751933443761,-460.0,0.00030409,7]
[370275308,1751933443770,-460.0,0.00030409,7]
[370275311,1751933443780,-460.0,0.00030409,7]
[370275312,1751933443790,-460.0,0.00030409,7]
[370275314,1751933443800,-460.0,0.00030409,7]
[370275316,1751933443809,-460.0,0.00030409,7]
[370275319,1751933443819,-460.0,0.00030409,7]
[370275320,1751933443828,-338.7,0.00030409,7]
[370275323,1751933443838,-520.0,0.00030409,7]
[370275324,1751933443847,-460.0,0.00030409,7]
[370275326,1751933443858,-460.0,0.00030409,7]
[370275328,1751933443873,-460.0,0.00030409,7]
[370275330,1751933443883,-460.0,0.00030409,7]
[370275332,1751933443892,-460.0,0.00030409,7]
[370275335,1751933443903,-460.0,0.00030409,7]
[370275336,1751933443912,-621.47,0.00030409,7]
[370275338,1751933443922,-460.0,0.00030409,7]
[370275340,1751933443931,-460.0,0.00030409,7]
[370275342,1751933443942,-460.0,0.00030409,7]
[370275344,1751933443953,-460.0,0.00030409,7]
[370275346,1751933443962,-460.0,0.00030409,7]
[370275348,1751933443971,-460.0,0.00030409,7]
[370275350,1751933443981,-460.0,0.00030409,7]
[370275352,1751933443991,-590.25,0.00030409,7]
[370275354,1751933444000,-460.0,0.00030409,7]
[370275356,1751933444010,-460.0,0.00030409,7]
[370275358,1751933444019,-460.0,0.00030409,7]
[370275360,1751933444028,-460.0,0.00030409,7]
[370275362,1751933444037,-207.05,0.00030409,7]
[370275364,1751933444046,-460.0,0.00030409,7]
[370275366,1751933444056,-460.0,0.00030409,7]
[370275368,1751933444065,-362.87,0.00030409,7]
[370275370,1751933444075,-460.0,0.00030409,7]
[370275372,1751933444085,-157.22,0.00030409,7]
[370275374,1751933444094,-460.0,0.00030409,7]
[370275376,1751933444104,-566.07,0.00030409,7]
[370275378,1751933444113,-460.0,0.00030409,7]
[370275380,1751933444122,-460.0,0.00030409,7]
[370275382,1751933444131,-415.19753102,0.00030409,7]
[370275384,1751933444140,-460.0,0.00030409,7]
[370275386,1751933444150,-460.0,0.00030409,7]
[370275388,1751933444159,-460.0,0.00030409,7]
[370275390,1751933444168,-460.0,0.00030409,7]
[370275392,1751933444177,-460.0,0.00030409,7]
[370275394,1751933444186,-460.0,0.00030409,7]
[370275396,1751933444195,-460.0,0.00030409,7]
[370275397,1751933444204,-460.0,0.00030409,7]
[370275400,1751933444214,-258.14,0.00030409,7]
[370275401,1751933444224,-460.0,0.00030409,7]
[370275403,1751933444233,-460.0,0.00030409,7]
[370275406,1751933444242,-460.0,0.00030409,7]
[370275407,1751933444251,-460.0,0.00030409,7]
[370275410,1751933444261,-460.0,0.00030409,7]
[370275412,1751933444270,-460.0,0.00030409,7]
[370275413,1751933444280,-460.0,0.00030409,7]
[370275415,1751933444290,-460.0,0.00030409,7]
[370275417,1751933444299,-479.30897354,0.00030409,7]
[370275419,1751933444309,-460.0,0.00030409,7]
[370275422,1751933444319,-460.0,0.00030409,7]
[370275423,1751933444328,-460.0,0.00030409,7]
[370275426,1751933444338,-460.0,0.00030409,7]
[370275428,1751933444349,-460.0,0.00030409,7]
[370275430,1751933444358,-460.0,0.00030409,7]
[370275432,1751933444368,-460.0,0.00030409,7]
[370275434,1751933444378,-460.0,0.00030409,7]
[370275436,1751933444387,-460.0,0.00030409,7]
[370275438,1751933444396,-460.0,0.00030409,7]
[370275457,1751933444571,-460.0,0.00030409,7]